[Event "*** SCC Grand Prix: Titled Tuesday Blitz"]
[Site "Chess.com"]
[Date "2020.09.08"]
[Round "8"]
[White "HouseOfDurin"]
[Black "Chessmatus"]
[Result "0-1"]
[WhiteElo "2136"]
[BlackElo "2386"]
[TimeControl "180+1"]
[EndTime "11:37:08 PDT"]
[Termination "Chessmatus won by checkmate"]

1. d4 {[%clk 0:03:00.9]} 1... Nf6 {[%clk 0:02:59.5]} 2. Bg5 {[%clk 0:03:01.4]}
2... Ne4 {[%clk 0:02:59]} 3. h4 {[%clk 0:03:01]} 3... c5 {[%clk 0:02:55.6]} 4.
dxc5 {[%clk 0:03:00.1]} 4... Qa5+ {[%clk 0:02:18]} 5. Nd2 {[%clk 0:02:59.6]}
5... Nxd2 {[%clk 0:02:16.9]} 6. Qxd2 {[%clk 0:03:00.5]} 6... Qxc5 {[%clk
0:02:12.4]} 7. c3 {[%clk 0:03:00.5]} 7... h6 {[%clk 0:01:45.2]} 8. Bf4 {[%clk
0:02:54.4]} 8... Nc6 {[%clk 0:01:39.4]} 9. e4 {[%clk 0:02:54.2]} 9... d6 {[%clk
0:01:35.5]} 10. Be3 {[%clk 0:02:53.2]} 10... Qa5 {[%clk 0:01:33.4]} 11. b4
{[%clk 0:02:52.6]} 11... Qc7 {[%clk 0:01:32.4]} 12. Rb1 {[%clk 0:02:41.8]} 12...
g6 {[%clk 0:01:07.4]} 13. b5 {[%clk 0:02:40]} 13... Ne5 {[%clk 0:01:07.4]} 14.
b6 {[%clk 0:02:37.5]} 14... axb6 {[%clk 0:00:55]} 15. Bxb6 {[%clk 0:02:36.7]}
15... Qb8 {[%clk 0:00:55.1]} 16. f4 {[%clk 0:02:27.5]} 16... Nc6 {[%clk
0:00:49.3]} 17. e5 {[%clk 0:02:18]} 17... dxe5 {[%clk 0:00:41.8]} 18. Bb5 {[%clk
0:02:06.7]} 18... Bd7 {[%clk 0:00:41.5]} 19. Nf3 {[%clk 0:01:41.6]} 19... Bg7
{[%clk 0:00:29.1]} 20. O-O {[%clk 0:01:37.5]} 20... Qd6 {[%clk 0:00:18.5]} 21.
Qe2 {[%clk 0:01:16.8]} 21... O-O {[%clk 0:00:15.6]} 22. Rbd1 {[%clk 0:01:16]}
22... Qe6 {[%clk 0:00:15.2]} 23. Bc4 {[%clk 0:01:11.3]} 23... Qg4 {[%clk
0:00:13.5]} 24. fxe5 {[%clk 0:00:51.6]} 24... Bf5 {[%clk 0:00:09.5]} 25. Bc5
{[%clk 0:00:36.5]} 25... Ra4 {[%clk 0:00:06.7]} 26. Bb3 {[%clk 0:00:35.6]} 26...
Re4 {[%clk 0:00:06.6]} 27. Qf2 {[%clk 0:00:34.4]} 27... Nxe5 {[%clk 0:00:06.8]}
28. Nxe5 {[%clk 0:00:34.3]} 28... Bxe5 {[%clk 0:00:07.7]} 29. Bxe7 {[%clk
0:00:33.4]} 29... Re8 {[%clk 0:00:07]} 30. Rd8 {[%clk 0:00:25.7]} 30... Rxd8
{[%clk 0:00:06.5]} 31. Bxd8 {[%clk 0:00:26.6]} 31... Bf4 {[%clk 0:00:06.6]} 32.
Bc2 {[%clk 0:00:13.8]} 32... Be3 {[%clk 0:00:06.1]} 33. Bxe4 {[%clk 0:00:12.7]}
33... Bxf2+ {[%clk 0:00:06.6]} 34. Rxf2 {[%clk 0:00:13.4]} 34... Qxe4 {[%clk
0:00:05.8]} 35. Bf6 {[%clk 0:00:13.8]} 35... Qb1+ {[%clk 0:00:05.6]} 36. Rf1
{[%clk 0:00:13.5]} 36... Qb6+ {[%clk 0:00:06]} 37. Bd4 {[%clk 0:00:13.9]} 37...
Qc6 {[%clk 0:00:04.8]} 38. g3 {[%clk 0:00:13.5]} 38... f6 {[%clk 0:00:05.1]} 39.
Rf2 {[%clk 0:00:14.4]} 39... Kf7 {[%clk 0:00:05.4]} 40. a4 {[%clk 0:00:12.8]}
40... Qc4 {[%clk 0:00:05.4]} 41. Rb2 {[%clk 0:00:12.1]} 41... Qd5 {[%clk
0:00:05.2]} 42. Rb6 {[%clk 0:00:11.8]} 42... Bg4 {[%clk 0:00:05.3]} 43. Kf2
{[%clk 0:00:12.6]} 43... Qf3+ {[%clk 0:00:05.1]} 44. Kg1 {[%clk 0:00:13.2]}
44... f5 {[%clk 0:00:05.4]} 45. Be5 {[%clk 0:00:12.3]} 45... Qd1+ {[%clk
0:00:05]} 46. Kf2 {[%clk 0:00:12.1]} 46... Qe2+ {[%clk 0:00:05]} 47. Kg1 {[%clk
0:00:12.5]} 47... Bf3 {[%clk 0:00:05.7]} 48. Rxb7+ {[%clk 0:00:13.2]} 48... Bxb7
{[%clk 0:00:04.8]} 49. Bd4 {[%clk 0:00:06.5]} 49... Qg2# {[%clk 0:00:05.7]} 0-1

[Event "*** SCC Grand Prix: Titled Tuesday Blitz"]
[Site "Chess.com"]
[Date "2020.09.08"]
[Round "8"]
[White "Wilver92"]
[Black "ErikRonka"]
[Result "0-1"]
[WhiteElo "2381"]
[BlackElo "2251"]
[TimeControl "180+1"]
[EndTime "11:37:08 PDT"]
[Termination "ErikRonka won by checkmate"]

1. e4 {[%clk 0:03:00.6]} 1... e5 {[%clk 0:02:55.7]} 2. Bc4 {[%clk 0:03:00.2]}
2... Nf6 {[%clk 0:02:54.6]} 3. d3 {[%clk 0:02:59.1]} 3... c6 {[%clk 0:02:55.1]}
4. Nf3 {[%clk 0:02:58.1]} 4... Be7 {[%clk 0:02:54.7]} 5. Nxe5 {[%clk 0:02:57.7]}
5... Qa5+ {[%clk 0:02:54.1]} 6. Nc3 {[%clk 0:02:57.1]} 6... Qxe5 {[%clk
0:02:53.9]} 7. O-O {[%clk 0:02:53.1]} 7... Qc7 {[%clk 0:02:48.8]} 8. f4 {[%clk
0:02:51.9]} 8... d6 {[%clk 0:02:47.9]} 9. Qe2 {[%clk 0:02:50]} 9... Nbd7 {[%clk
0:02:44.7]} 10. g4 {[%clk 0:02:44.9]} 10... b5 {[%clk 0:02:41.5]} 11. Bb3 {[%clk
0:02:43.5]} 11... Nc5 {[%clk 0:02:40.3]} 12. g5 {[%clk 0:02:42.9]} 12... Nfd7
{[%clk 0:02:35.4]} 13. Be3 {[%clk 0:02:38.7]} 13... Nxb3 {[%clk 0:02:34.7]} 14.
axb3 {[%clk 0:02:39.6]} 14... O-O {[%clk 0:02:00.8]} 15. h4 {[%clk 0:02:38.7]}
15... f5 {[%clk 0:01:59.3]} 16. exf5 {[%clk 0:02:31.3]} 16... Rxf5 {[%clk
0:01:58.7]} 17. h5 {[%clk 0:02:31.4]} 17... Nf8 {[%clk 0:01:56.5]} 18. Rae1
{[%clk 0:02:23.5]} 18... Be6 {[%clk 0:01:54]} 19. Bd4 {[%clk 0:02:13]} 19...
Bxg5 {[%clk 0:01:18.7]} 20. fxg5 {[%clk 0:02:08.6]} 20... Rxg5+ {[%clk
0:01:19.6]} 21. Kh1 {[%clk 0:01:58.2]} 21... Bg4 {[%clk 0:01:13.8]} 22. Qe7
{[%clk 0:01:57.6]} 22... Rxh5+ {[%clk 0:01:12.1]} 23. Kg1 {[%clk 0:01:56.5]}
23... Qxe7 {[%clk 0:01:06.1]} 24. Rxe7 {[%clk 0:01:57.4]} 24... Ne6 {[%clk
0:01:02.6]} 25. Bxg7 {[%clk 0:01:39.7]} 25... Nxg7 {[%clk 0:00:58.3]} 26. Ne4
{[%clk 0:01:39.6]} 26... Ne8 {[%clk 0:00:45.6]} 27. Rb7 {[%clk 0:01:28.7]} 27...
Bf5 {[%clk 0:00:41.5]} 28. Ng3 {[%clk 0:01:25]} 28... Rg5 {[%clk 0:00:41.2]} 29.
Kh2 {[%clk 0:01:22.5]} 29... Bg6 {[%clk 0:00:40.3]} 30. Re1 {[%clk 0:01:19.9]}
30... Re5 {[%clk 0:00:35.2]} 31. Rf1 {[%clk 0:01:16.5]} 31... Ng7 {[%clk
0:00:34.5]} 32. Rf6 {[%clk 0:01:13]} 32... Rd8 {[%clk 0:00:21.9]} 33. Ne4 {[%clk
0:01:05.2]} 33... Bxe4 {[%clk 0:00:18.3]} 34. dxe4 {[%clk 0:01:06.1]} 34... Rxe4
{[%clk 0:00:17.2]} 35. Rff7 {[%clk 0:01:06.4]} 35... Rg4 {[%clk 0:00:17.7]} 36.
Rxa7 {[%clk 0:01:05.9]} 36... Rg6 {[%clk 0:00:17.7]} 37. Rfc7 {[%clk 0:01:04.8]}
37... d5 {[%clk 0:00:16.9]} 38. Ra6 {[%clk 0:01:00.4]} 38... h5 {[%clk
0:00:16.1]} 39. Raxc6 {[%clk 0:00:57.9]} 39... Rxc6 {[%clk 0:00:16.1]} 40. Rxc6
{[%clk 0:00:58.7]} 40... Kf7 {[%clk 0:00:15.9]} 41. Rc5 {[%clk 0:00:58.9]} 41...
Ke6 {[%clk 0:00:14.5]} 42. Rxb5 {[%clk 0:00:59]} 42... Nf5 {[%clk 0:00:14.5]}
43. Kh3 {[%clk 0:00:57.8]} 43... Rg8 {[%clk 0:00:13.5]} 44. Rb6+ {[%clk
0:00:53.8]} 44... Ke5 {[%clk 0:00:13.3]} 45. Ra6 {[%clk 0:00:53.9]} 45... Rg3+
{[%clk 0:00:13.1]} 46. Kh2 {[%clk 0:00:53.9]} 46... Re3 {[%clk 0:00:14]} 47. Ra8
{[%clk 0:00:53.3]} 47... Re2+ {[%clk 0:00:14.5]} 48. Kh3 {[%clk 0:00:53.7]}
48... Rxc2 {[%clk 0:00:15.1]} 49. Re8+ {[%clk 0:00:53.7]} 49... Kf4 {[%clk
0:00:15.1]} 50. b4 {[%clk 0:00:47.7]} 50... Rxb2 {[%clk 0:00:15]} 51. Re1 {[%clk
0:00:47.5]} 51... Rb3+ {[%clk 0:00:15.2]} 52. Kh2 {[%clk 0:00:47.1]} 52... Rxb4
{[%clk 0:00:15.6]} 53. Ra1 {[%clk 0:00:44.6]} 53... d4 {[%clk 0:00:15.3]} 54.
Kh3 {[%clk 0:00:44.9]} 54... d3 {[%clk 0:00:15.4]} 55. Rf1+ {[%clk 0:00:44.9]}
55... Ke4 {[%clk 0:00:14.5]} 56. Re1+ {[%clk 0:00:43]} 56... Ne3 {[%clk
0:00:14.7]} 57. Kg3 {[%clk 0:00:43.4]} 57... d2 {[%clk 0:00:14]} 58. Rh1 {[%clk
0:00:43.2]} 58... d1=Q {[%clk 0:00:13.4]} 59. Kf2 {[%clk 0:00:42.3]} 59... Rb2+
{[%clk 0:00:11.5]} 60. Kg3 {[%clk 0:00:43.2]} 60... Qg4# {[%clk 0:00:11.4]} 0-1

[Event "*** SCC Grand Prix: Titled Tuesday Blitz"]
[Site "Chess.com"]
[Date "2020.09.08"]
[Round "8"]
[White "Anton_Demchenko"]
[Black "Alexsur1981"]
[Result "1/2-1/2"]
[WhiteElo "2865"]
[BlackElo "2728"]
[TimeControl "180+1"]
[EndTime "11:37:09 PDT"]
[Termination "Game drawn - insufficient material"]

1. d4 {[%clk 0:03:00.2]} 1... d6 {[%clk 0:02:58.6]} 2. e4 {[%clk 0:02:58.8]}
2... g6 {[%clk 0:02:55.9]} 3. Nc3 {[%clk 0:02:58.6]} 3... Bg7 {[%clk 0:02:56.1]}
4. Nf3 {[%clk 0:02:58.2]} 4... a6 {[%clk 0:02:55.3]} 5. Be2 {[%clk 0:02:56]}
5... Nd7 {[%clk 0:02:53.6]} 6. O-O {[%clk 0:02:55.3]} 6... b5 {[%clk 0:02:51]}
7. a4 {[%clk 0:02:40]} 7... b4 {[%clk 0:02:49]} 8. Nd5 {[%clk 0:02:40.2]} 8...
a5 {[%clk 0:02:49.6]} 9. c3 {[%clk 0:02:34.2]} 9... e6 {[%clk 0:02:41.7]} 10.
Nf4 {[%clk 0:02:28.6]} 10... Bb7 {[%clk 0:02:37.3]} 11. cxb4 {[%clk 0:02:13.7]}
11... axb4 {[%clk 0:02:37.7]} 12. d5 {[%clk 0:02:06.9]} 12... exd5 {[%clk
0:02:28.2]} 13. Nxd5 {[%clk 0:02:04.7]} 13... Ngf6 {[%clk 0:02:25.8]} 14. Nxb4
{[%clk 0:01:37.5]} 14... Bxe4 {[%clk 0:02:14.9]} 15. Bb5 {[%clk 0:01:37.2]}
15... O-O {[%clk 0:02:09.1]} 16. Re1 {[%clk 0:01:34.9]} 16... c5 {[%clk
0:01:59.1]} 17. Nc6 {[%clk 0:01:22.7]} 17... Qc7 {[%clk 0:01:59.2]} 18. Ne7+
{[%clk 0:01:23]} 18... Kh8 {[%clk 0:01:59.7]} 19. Ng5 {[%clk 0:01:23.7]} 19...
Bb7 {[%clk 0:01:46.1]} 20. Qb3 {[%clk 0:00:26]} 20... d5 {[%clk 0:01:46.1]} 21.
Qh3 {[%clk 0:00:14]} 21... h5 {[%clk 0:01:35.9]} 22. Qh4 {[%clk 0:00:10.6]}
22... Rae8 {[%clk 0:01:27.1]} 23. Bf4 {[%clk 0:00:10.5]} 23... Qd8 {[%clk
0:01:27.8]} 24. Bd6 {[%clk 0:00:05.6]} 24... Nh7 {[%clk 0:01:11.5]} 25. Nxf7+
{[%clk 0:00:03.9]} 25... Rxf7 {[%clk 0:01:11.8]} 26. Nxg6+ {[%clk 0:00:04.5]}
26... Kg8 {[%clk 0:01:11.5]} 27. Rxe8+ {[%clk 0:00:03.5]} 27... Qxe8 {[%clk
0:01:12.4]} 28. Ne7+ {[%clk 0:00:04]} 28... Rxe7 {[%clk 0:01:10.7]} 29. Qxe7
{[%clk 0:00:03.4]} 29... Qxe7 {[%clk 0:01:11]} 30. Bxe7 {[%clk 0:00:04.3]} 30...
Nb8 {[%clk 0:01:09.8]} 31. a5 {[%clk 0:00:04.1]} 31... Na6 {[%clk 0:01:09.5]}
32. Bxa6 {[%clk 0:00:03.1]} 32... Bxa6 {[%clk 0:01:10.4]} 33. Bxc5 {[%clk
0:00:03.4]} 33... Nf6 {[%clk 0:01:03.5]} 34. Rd1 {[%clk 0:00:03.1]} 34... Kf7
{[%clk 0:01:01.4]} 35. f3 {[%clk 0:00:02.9]} 35... Ke6 {[%clk 0:01:00.7]} 36.
Bd4 {[%clk 0:00:02.9]} 36... Bf8 {[%clk 0:00:58]} 37. Kf2 {[%clk 0:00:03.4]}
37... Nd7 {[%clk 0:00:57.5]} 38. h3 {[%clk 0:00:03.8]} 38... h4 {[%clk
0:00:56.4]} 39. g3 {[%clk 0:00:03.8]} 39... hxg3+ {[%clk 0:00:57.3]} 40. Kxg3
{[%clk 0:00:04.7]} 40... Nc5 {[%clk 0:00:56.6]} 41. Kg4 {[%clk 0:00:04.7]} 41...
Nb3 {[%clk 0:00:56.7]} 42. Re1+ {[%clk 0:00:04.3]} 42... Kf7 {[%clk 0:00:56.3]}
43. Bc3 {[%clk 0:00:05.2]} 43... d4 {[%clk 0:00:56.1]} 44. Bxd4 {[%clk
0:00:03.1]} 44... Nxd4 {[%clk 0:00:57]} 45. f4 {[%clk 0:00:03.7]} 45... Bc8+
{[%clk 0:00:52.9]} 46. Kg3 {[%clk 0:00:04]} 46... Nf5+ {[%clk 0:00:51.8]} 47.
Kf3 {[%clk 0:00:03.9]} 47... Bb4 {[%clk 0:00:50.5]} 48. Ra1 {[%clk 0:00:03.4]}
48... Ba6 {[%clk 0:00:48.9]} 49. Ke4 {[%clk 0:00:03.8]} 49... Nd6+ {[%clk
0:00:48.9]} 50. Kd5 {[%clk 0:00:03.9]} 50... Nb7 {[%clk 0:00:49.4]} 51. Kc6
{[%clk 0:00:03.7]} 51... Bxa5 {[%clk 0:00:38.7]} 52. Rxa5 {[%clk 0:00:02.6]}
52... Nxa5+ {[%clk 0:00:39.6]} 53. Kb6 {[%clk 0:00:03.2]} 53... Nc4+ {[%clk
0:00:40.1]} 54. Kxa6 {[%clk 0:00:03.6]} 54... Nxb2 {[%clk 0:00:41]} 55. Kb5
{[%clk 0:00:03.4]} 55... Nd3 {[%clk 0:00:41.6]} 56. f5 {[%clk 0:00:03.8]} 56...
Nf4 {[%clk 0:00:42.2]} 57. Kc4 {[%clk 0:00:04.6]} 57... Nxh3 {[%clk 0:00:41.9]}
58. Kd5 {[%clk 0:00:05.5]} 58... Kf6 {[%clk 0:00:42.5]} 59. Ke4 {[%clk
0:00:06.4]} 59... Ng5+ {[%clk 0:00:42.7]} 60. Kf4 {[%clk 0:00:06.7]} 60... Ne6+
{[%clk 0:00:43.6]} 61. Kg4 {[%clk 0:00:07]} 61... Ke5 {[%clk 0:00:43.1]} 62. Kh5
{[%clk 0:00:06.6]} 62... Kxf5 {[%clk 0:00:42.8]} 1/2-1/2

[Event "*** SCC Grand Prix: Titled Tuesday Blitz"]
[Site "Chess.com"]
[Date "2020.09.08"]
[Round "8"]
[White "NikolaGry"]
[Black "Nikithebest"]
[Result "1-0"]
[WhiteElo "2601"]
[BlackElo "2439"]
[TimeControl "180+1"]
[EndTime "11:37:10 PDT"]
[Termination "NikolaGry won on time"]

1. e4 {[%clk 0:03:00.9]} 1... c5 {[%clk 0:02:59.3]} 2. Be2 {[%clk 0:02:57.2]}
2... Nc6 {[%clk 0:02:57]} 3. f4 {[%clk 0:02:54.6]} 3... d5 {[%clk 0:02:54.1]} 4.
d3 {[%clk 0:02:54.5]} 4... dxe4 {[%clk 0:02:51.5]} 5. dxe4 {[%clk 0:02:54.3]}
5... Qxd1+ {[%clk 0:02:52.4]} 6. Bxd1 {[%clk 0:02:54.3]} 6... g6 {[%clk
0:02:33.7]} 7. Be3 {[%clk 0:02:48.9]} 7... b6 {[%clk 0:02:33]} 8. c3 {[%clk
0:02:42.3]} 8... Ba6 {[%clk 0:02:30]} 9. Na3 {[%clk 0:02:34.9]} 9... O-O-O
{[%clk 0:02:27.5]} 10. Ba4 {[%clk 0:02:33.6]} 10... Bb7 {[%clk 0:02:23.9]} 11.
Nf3 {[%clk 0:02:28.1]} 11... h6 {[%clk 0:02:11]} 12. e5 {[%clk 0:01:55.4]} 12...
f6 {[%clk 0:01:49.7]} 13. Nc4 {[%clk 0:01:47.1]} 13... g5 {[%clk 0:01:49]} 14.
O-O {[%clk 0:01:42]} 14... Bg7 {[%clk 0:01:47.3]} 15. Rae1 {[%clk 0:01:34.3]}
15... Kc7 {[%clk 0:01:28.1]} 16. Bc1 {[%clk 0:01:17.2]} 16... a6 {[%clk
0:01:28.3]} 17. exf6 {[%clk 0:01:05.6]} 17... exf6 {[%clk 0:01:26.7]} 18. Bc2
{[%clk 0:00:49.9]} 18... b5 {[%clk 0:01:23.6]} 19. Ne3 {[%clk 0:00:49.6]} 19...
Nge7 {[%clk 0:01:23.2]} 20. h4 {[%clk 0:00:45.5]} 20... gxf4 {[%clk 0:00:37.4]}
21. Nf5 {[%clk 0:00:44.7]} 21... Nxf5 {[%clk 0:00:35.7]} 22. Bxf5 {[%clk
0:00:44.6]} 22... Kb6 {[%clk 0:00:36.1]} 23. Bxf4 {[%clk 0:00:43.7]} 23... Rhe8
{[%clk 0:00:33.1]} 24. Bg6 {[%clk 0:00:41.9]} 24... Rxe1 {[%clk 0:00:32.3]} 25.
Rxe1 {[%clk 0:00:41.6]} 25... Bc8 {[%clk 0:00:20.6]} 26. h5 {[%clk 0:00:38.7]}
26... Bg4 {[%clk 0:00:19.9]} 27. Nh4 {[%clk 0:00:38.2]} 27... Ne5 {[%clk
0:00:18.9]} 28. Nf5 {[%clk 0:00:31.7]} 28... Bxf5 {[%clk 0:00:18.7]} 29. Bxf5
{[%clk 0:00:31.7]} 29... c4 {[%clk 0:00:18.7]} 30. Be3+ {[%clk 0:00:29.5]} 30...
Kc7 {[%clk 0:00:17.6]} 31. Bd4 {[%clk 0:00:29.8]} 31... a5 {[%clk 0:00:17.1]}
32. Re3 {[%clk 0:00:27.7]} 32... Re8 {[%clk 0:00:15]} 33. Rg3 {[%clk 0:00:27]}
33... Re7 {[%clk 0:00:15.5]} 34. Kh2 {[%clk 0:00:26.1]} 34... Kd6 {[%clk
0:00:14.8]} 35. Kh3 {[%clk 0:00:25.6]} 35... b4 {[%clk 0:00:14.4]} 36. Be3
{[%clk 0:00:24.8]} 36... Kd5 {[%clk 0:00:13.6]} 37. Bf4 {[%clk 0:00:24.8]} 37...
Rb7 {[%clk 0:00:10]} 38. Re3 {[%clk 0:00:21.1]} 38... Kd6 {[%clk 0:00:07.7]} 39.
Be4 {[%clk 0:00:20.6]} 39... Rb6 {[%clk 0:00:07.1]} 40. Re2 {[%clk 0:00:20.8]}
40... bxc3 {[%clk 0:00:07.3]} 41. bxc3 {[%clk 0:00:20.8]} 41... a4 {[%clk
0:00:07.9]} 42. Rd2+ {[%clk 0:00:20.8]} 42... Ke7 {[%clk 0:00:08.6]} 43. Be3
{[%clk 0:00:20.8]} 43... Rb8 {[%clk 0:00:07.4]} 44. Bf5 {[%clk 0:00:20.5]} 44...
a3 {[%clk 0:00:06.8]} 45. Bc5+ {[%clk 0:00:20.5]} 45... Ke8 {[%clk 0:00:05.9]}
46. Rd5 {[%clk 0:00:17.9]} 46... Rb2 {[%clk 0:00:06]} 47. Bxa3 {[%clk
0:00:16.8]} 47... Rxa2 {[%clk 0:00:06.1]} 48. Bb4 {[%clk 0:00:17.1]} 48... Rf2
{[%clk 0:00:04.4]} 49. Be6 {[%clk 0:00:14.8]} 49... Re2 {[%clk 0:00:03.9]} 50.
Rb5 {[%clk 0:00:14.2]} 50... Kd8 {[%clk 0:00:03.7]} 51. Bd6 {[%clk 0:00:13.9]}
1-0

[Event "*** SCC Grand Prix: Titled Tuesday Blitz"]
[Site "Chess.com"]
[Date "2020.09.08"]
[Round "8"]
[White "CaspiIsrael"]
[Black "bratkoo"]
[Result "0-1"]
[WhiteElo "2632"]
[BlackElo "2503"]
[TimeControl "180+1"]
[EndTime "11:37:12 PDT"]
[Termination "bratkoo won on time"]

1. e4 {[%clk 0:03:00.9]} 1... g6 {[%clk 0:02:59.5]} 2. d4 {[%clk 0:03:00.2]}
2... Bg7 {[%clk 0:03:00.2]} 3. Nf3 {[%clk 0:03:00.8]} 3... d6 {[%clk 0:03:00.8]}
4. Be2 {[%clk 0:03:00.6]} 4... Nf6 {[%clk 0:03:00.7]} 5. Nc3 {[%clk 0:03:00.9]}
5... O-O {[%clk 0:03:00.6]} 6. O-O {[%clk 0:03:01.5]} 6... Nbd7 {[%clk
0:03:00.9]} 7. e5 {[%clk 0:03:00.9]} 7... Ne8 {[%clk 0:03:00.1]} 8. Re1 {[%clk
0:02:57.8]} 8... dxe5 {[%clk 0:02:57.2]} 9. dxe5 {[%clk 0:02:57.7]} 9... c6
{[%clk 0:02:51.8]} 10. e6 {[%clk 0:02:51.2]} 10... fxe6 {[%clk 0:02:50.9]} 11.
Ng5 {[%clk 0:02:48.6]} 11... Nc7 {[%clk 0:02:45.5]} 12. Bc4 {[%clk 0:02:48.5]}
12... Nb6 {[%clk 0:02:39.9]} 13. Bb3 {[%clk 0:02:38.6]} 13... Qxd1 {[%clk
0:02:25.9]} 14. Nxd1 {[%clk 0:02:37.8]} 14... Nbd5 {[%clk 0:02:01.7]} 15. c3
{[%clk 0:02:37.4]} 15... h6 {[%clk 0:01:58.7]} 16. Ne4 {[%clk 0:02:35.3]} 16...
e5 {[%clk 0:01:54.4]} 17. Bd2 {[%clk 0:02:23.8]} 17... Kh7 {[%clk 0:01:47.4]}
18. f3 {[%clk 0:02:24.1]} 18... b6 {[%clk 0:01:45.4]} 19. Ndf2 {[%clk
0:02:24.3]} 19... Bf5 {[%clk 0:01:42.7]} 20. Rad1 {[%clk 0:02:23.9]} 20... Rad8
{[%clk 0:01:42.6]} 21. Bc1 {[%clk 0:02:23.9]} 21... Nf4 {[%clk 0:01:30.1]} 22.
g3 {[%clk 0:02:20.3]} 22... Nfd5 {[%clk 0:01:03.9]} 23. Kg2 {[%clk 0:02:18.7]}
23... g5 {[%clk 0:01:01.3]} 24. Ba4 {[%clk 0:02:15.4]} 24... c5 {[%clk
0:00:55.7]} 25. Bb3 {[%clk 0:02:09.3]} 25... Kg6 {[%clk 0:00:54.2]} 26. Bc2
{[%clk 0:01:37.3]} 26... Kh7 {[%clk 0:00:51.3]} 27. Bd3 {[%clk 0:01:17.1]} 27...
Bg6 {[%clk 0:00:41.1]} 28. Ng4 {[%clk 0:01:12.7]} 28... Nf6 {[%clk 0:00:19.8]}
29. Nxe5 {[%clk 0:00:31.8]} 29... Bxe4 {[%clk 0:00:19.4]} 30. fxe4 {[%clk
0:00:28]} 30... Kh8 {[%clk 0:00:18.9]} 31. Ng6+ {[%clk 0:00:27.8]} 31... Kg8
{[%clk 0:00:19.4]} 32. Bc4+ {[%clk 0:00:25.4]} 32... Kh7 {[%clk 0:00:19.5]} 33.
Nxf8+ {[%clk 0:00:25.7]} 33... Rxf8 {[%clk 0:00:20.3]} 34. e5 {[%clk 0:00:26.3]}
34... Ng4 {[%clk 0:00:19.8]} 35. Rd7 {[%clk 0:00:22.1]} 35... Rf2+ {[%clk
0:00:18.8]} 36. Kg1 {[%clk 0:00:22.1]} 36... Rc2 {[%clk 0:00:15]} 37. Rxc7
{[%clk 0:00:20.3]} 37... Nxe5 {[%clk 0:00:14.6]} 38. Bd5 {[%clk 0:00:11.1]}
38... Bf6 {[%clk 0:00:12]} 39. Be3 {[%clk 0:00:09.9]} 39... Kg7 {[%clk
0:00:11.9]} 40. b4 {[%clk 0:00:05.3]} 40... Rxc3 {[%clk 0:00:11.9]} 41. bxc5
{[%clk 0:00:04.5]} 41... Nd3 {[%clk 0:00:12.4]} 42. Rd1 {[%clk 0:00:02.3]} 42...
Nb2 {[%clk 0:00:11.9]} 43. cxb6 {[%clk 0:00:02.6]} 43... Nxd1 {[%clk 0:00:10.6]}
44. Rxc3 {[%clk 0:00:02.1]} 44... Nxc3 {[%clk 0:00:10.6]} 45. bxa7 {[%clk
0:00:03]} 45... Nxd5 {[%clk 0:00:11.2]} 46. a8=Q {[%clk 0:00:03.4]} 46... Nxe3
{[%clk 0:00:12.1]} 47. Qe4 {[%clk 0:00:03.7]} 47... Nd1 {[%clk 0:00:09.9]} 48.
Kg2 {[%clk 0:00:03.6]} 48... Nc3 {[%clk 0:00:10.3]} 49. Qc2 {[%clk 0:00:03.2]}
49... Nd5 {[%clk 0:00:09.3]} 50. a4 {[%clk 0:00:03.3]} 50... Ne3+ {[%clk
0:00:09.5]} 0-1

[Event "*** SCC Grand Prix: Titled Tuesday Blitz"]
[Site "Chess.com"]
[Date "2020.09.08"]
[Round "8"]
[White "SophieNikoladze"]
[Black "MashaFromRussia"]
[Result "0-1"]
[WhiteElo "2242"]
[BlackElo "2362"]
[TimeControl "180+1"]
[EndTime "11:37:15 PDT"]
[Termination "MashaFromRussia won by resignation"]

1. d4 {[%clk 0:03:00.9]} 1... Nf6 {[%clk 0:02:59.6]} 2. Nf3 {[%clk 0:02:58.5]}
2... g6 {[%clk 0:02:59.7]} 3. g3 {[%clk 0:02:58.1]} 3... Bg7 {[%clk 0:03:00.1]}
4. Bg2 {[%clk 0:02:56.3]} 4... O-O {[%clk 0:03:00.5]} 5. O-O {[%clk 0:02:55.8]}
5... d6 {[%clk 0:03:00]} 6. c4 {[%clk 0:02:56.2]} 6... Nc6 {[%clk 0:03:00.2]} 7.
Nc3 {[%clk 0:02:56.5]} 7... a6 {[%clk 0:03:00.5]} 8. e4 {[%clk 0:02:55.9]} 8...
Rb8 {[%clk 0:02:59.9]} 9. a4 {[%clk 0:02:49.7]} 9... Nd7 {[%clk 0:02:56.1]} 10.
Re1 {[%clk 0:02:48.4]} 10... e5 {[%clk 0:02:55]} 11. d5 {[%clk 0:02:48.2]} 11...
Nd4 {[%clk 0:02:54.6]} 12. Nxd4 {[%clk 0:02:43.6]} 12... exd4 {[%clk 0:02:55.5]}
13. Ne2 {[%clk 0:02:42.6]} 13... Qf6 {[%clk 0:02:53.7]} 14. Ra3 {[%clk
0:02:42.3]} 14... c5 {[%clk 0:02:52.8]} 15. dxc6 {[%clk 0:02:36.3]} 15... bxc6
{[%clk 0:02:52.3]} 16. Rf3 {[%clk 0:02:36.7]} 16... Qe5 {[%clk 0:02:49.2]} 17.
Bf4 {[%clk 0:02:33.4]} 17... Qc5 {[%clk 0:02:43]} 18. Rd3 {[%clk 0:02:27.2]}
18... Rxb2 {[%clk 0:02:32.7]} 19. Nxd4 {[%clk 0:02:23.5]} 19... Ne5 {[%clk
0:02:29.6]} 20. Bxe5 {[%clk 0:02:16.8]} 20... Bxe5 {[%clk 0:02:29.9]} 21. Bf1
{[%clk 0:01:59]} 21... a5 {[%clk 0:02:23]} 22. Re2 {[%clk 0:01:42.8]} 22... Rxe2
{[%clk 0:02:21.5]} 23. Bxe2 {[%clk 0:01:40.8]} 23... Ba6 {[%clk 0:02:21]} 24.
Nf3 {[%clk 0:01:31.3]} 24... Bxc4 {[%clk 0:02:17.3]} 25. Nxe5 {[%clk 0:01:18]}
25... Qxe5 {[%clk 0:02:16.6]} 26. Rd2 {[%clk 0:01:12.6]} 26... Bxe2 {[%clk
0:02:05.4]} 27. Qxe2 {[%clk 0:01:12.6]} 27... Rb8 {[%clk 0:02:04.1]} 28. Qc4
{[%clk 0:01:09.3]} 28... c5 {[%clk 0:01:44.5]} 29. Rd5 {[%clk 0:01:06]} 29...
Qa1+ {[%clk 0:01:43.7]} 30. Kg2 {[%clk 0:01:05.5]} 30... Rb4 {[%clk 0:01:43.6]}
31. Qa6 {[%clk 0:01:03.5]} 31... Rxe4 {[%clk 0:01:33.7]} 32. Rxd6 {[%clk
0:01:01.6]} 32... Qxa4 {[%clk 0:01:31.2]} 33. Qa8+ {[%clk 0:00:54.6]} 33... Kg7
{[%clk 0:01:31.1]} 34. Ra6 {[%clk 0:00:53.1]} 34... Qd4 {[%clk 0:01:25]} 35.
Rxa5 {[%clk 0:00:49.2]} 35... Re2 {[%clk 0:01:25.4]} 36. Qf3 {[%clk 0:00:46.7]}
36... Re1 {[%clk 0:01:21.5]} 37. Ra7 {[%clk 0:00:44.3]} 37... Qc4 {[%clk
0:01:12.6]} 38. Rxf7+ {[%clk 0:00:35.4]} 38... Qxf7 {[%clk 0:01:09.5]} 39. Qc3+
{[%clk 0:00:35.2]} 39... Qf6 {[%clk 0:01:09.5]} 40. Qxe1 {[%clk 0:00:34.7]}
40... c4 {[%clk 0:01:02.5]} 41. Qe4 {[%clk 0:00:24.9]} 41... c3 {[%clk
0:01:01.8]} 42. Qb7+ {[%clk 0:00:24.5]} 42... Kh6 {[%clk 0:01:00.6]} 43. Qc7
{[%clk 0:00:24.3]} 43... Qd4 {[%clk 0:00:57]} 44. h4 {[%clk 0:00:20.5]} 44...
Qe4+ {[%clk 0:00:55.9]} 45. Kh3 {[%clk 0:00:19]} 45... c2 {[%clk 0:00:55.9]} 46.
g4 {[%clk 0:00:18.2]} 46... Qf3+ {[%clk 0:00:43.9]} 47. Kh2 {[%clk 0:00:17.1]}
47... Qxf2+ {[%clk 0:00:43.1]} 48. Kh3 {[%clk 0:00:17]} 48... Qe3+ {[%clk
0:00:20]} 49. Kg2 {[%clk 0:00:16.6]} 49... c1=Q {[%clk 0:00:19.8]} 50. g5+
{[%clk 0:00:16.4]} 50... Kh5 {[%clk 0:00:20.2]} 51. Qxh7+ {[%clk 0:00:15.2]}
51... Kg4 {[%clk 0:00:20.6]} 52. Qd7+ {[%clk 0:00:15.2]} 52... Kxh4 {[%clk
0:00:20.9]} 53. Qh7+ {[%clk 0:00:13]} 53... Kxg5 {[%clk 0:00:21.3]} 54. Qf7
{[%clk 0:00:08.6]} 0-1